bitfinex/quotes_BTCUSD_20241206
["timestamp","ask_amount","ask_price","bid_price","bid_amount"]
[1733481079605,1.21616251,97971.0,97970.0,7.5e-07]
[1733481079810,1.32105743,97971.0,97970.0,7.5e-07]
[1733481080195,1.31205743,97971.0,97970.0,7.5e-07]
[1733481080420,1.32105743,97971.0,97970.0,7.5e-07]
[1733481080625,1.31205743,97971.0,97970.0,7.5e-07]
[1733481080833,1.41405743,97971.0,97970.0,7.5e-07]
[1733481081024,1.42431842,97971.0,97970.0,7.5e-07]
[1733481081288,1.32231842,97971.0,97970.0,7.5e-07]
[1733481081506,1.33131842,97971.0,97970.0,7.5e-07]
[1733481081950,1.32231842,97971.0,97970.0,7.5e-07]
[1733481082373,1.33131842,97971.0,97970.0,7.5e-07]
[1733481083320,0.30658074,97961.0,97960.0,0.0008636]
[1733481083563,0.82638555,97961.0,97960.0,6e-07]
[1733481083775,0.99020084,97951.0,97950.0,7e-07]
[1733481084048,0.99020084,97951.0,97940.0,0.0008637]
[1733481084049,0.45662274,97941.0,97940.0,0.0008637]
[1733481084324,0.61365428,97941.0,97940.0,0.0008637]
[1733481084546,0.56365428,97941.0,97940.0,0.0008637]
[1733481085461,0.94348698,97941.0,97940.0,0.0008637]
[1733481085689,1.04564503,97941.0,97940.0,0.0008637]
[1733481085910,1.15053995,97941.0,97940.0,0.0008637]
[1733481086594,1.15953995,97941.0,97940.0,0.0008637]
[1733481087986,1.69313905,97941.0,97940.0,0.0008637]
[1733481089460,1.7031332,97941.0,97940.0,0.0008637]
[1733481089916,1.6010332,97941.0,97940.0,0.0008637]
[1733481090357,1.6010332,97941.0,97940.0,7e-07]
[1733481090583,0.00241874,97921.0,97904.0,0.0775]
[1733481090806,0.42857488,97921.0,97904.0,0.0775]
[1733481091044,0.42729806,97921.0,97904.0,0.0775]
[1733481092059,0.42729806,97921.0,97906.0,0.204277]
[1733481092060,0.32069628,97921.0,97906.0,0.204277]
[1733481092302,0.32069628,97921.0,97904.0,0.0775]
[1733481092493,0.31827754,97921.0,97910.0,0.204268]
[1733481092812,0.32069628,97921.0,97904.0,0.0775]
[1733481093239,0.3407868,97921.0,97904.0,0.0775]
[1733481093446,0.3497868,97921.0,97904.0,0.0775]
[1733481093671,0.45468172,97921.0,97904.0,0.0775]
[1733481094270,0.45468172,97921.0,97905.0,0.204279]
[1733481094713,0.45468172,97921.0,97904.0,0.0775]
[1733481095177,0.45468172,97921.0,97905.0,0.204279]
[1733481096566,0.02041874,97921.0,97920.0,0.1383639]
[1733481097008,5.805e-05,97941.0,97920.0,0.24339544]
[1733481097227,5.805e-05,97941.0,97940.0,0.227206]
[1733481097422,0.204156,97965.0,97951.0,0.204182]
[1733481097627,0.10630771,97964.0,97951.0,0.0001745]
[1733481097836,0.204168,97959.0,97951.0,0.0001745]
[1733481098051,0.0012762,97958.0,97951.0,0.0001745]
[1733481098291,0.10503154,97957.0,97951.0,0.0001745]
[1733481098492,0.204175,97955.0,97951.0,0.0001745]
[1733481098818,0.22560875,97966.0,97951.0,0.0001745]
[1733481098819,0.02008857,97972.0,97953.0,0.023]
[1733481099148,0.02008857,97972.0,97952.0,0.1272]
[1733481099149,0.009,97964.0,97963.0,0.304958]
[1733481099366,0.00127573,97997.0,97965.0,0.204154]
[1733481099575,0.10630727,97997.0,97992.0,0.204097]
[1733481099795,0.10503154,97997.0,97992.0,0.204097]
[1733481100212,0.0017296,98000.0,97978.0,0.023]
[1733481100484,0.0007296,98000.0,97979.0,0.0010205]
[1733481100687,0.0007296,98000.0,97993.0,0.204095]
[1733481100905,0.0007296,98000.0,97980.0,0.0759]
[1733481100906,0.00127562,97999.0,97981.0,0.023]
[1733481101094,0.204097,97993.0,97980.0,0.0759]
[1733481101312,0.204118,97983.0,97969.0,0.023]
[1733481101515,0.00127581,97982.0,97969.0,0.023]
[1733481101657,0.00127581,97982.0,97978.0,0.009]
[1733481102109,0.204141,97972.0,97966.0,0.0787]
[1733481102291,0.30915354,97981.0,97967.0,0.408299]
[1733481102494,0.00127591,97980.0,97969.0,0.009]
[1733481102751,0.00127591,97980.0,97970.0,0.204144]
[1733481103433,0.05283026,97980.0,97970.0,0.204144]
[1733481103633,0.00127591,97980.0,97970.0,0.204144]
[1733481103834,0.00127591,97980.0,97969.0,0.009]
[1733481104180,0.00127591,97980.0,97970.0,0.001]
[1733481104181,0.204127,97978.0,97970.0,0.001]
[1733481104330,0.204137,97974.0,97970.0,0.001]
[1733481104577,0.00127595,97973.0,97970.0,0.001]
[1733481105383,0.00127595,97973.0,97969.0,0.009]
[1733481105600,0.00127594,97980.0,97966.0,0.0787]
[1733481105840,0.204015,98032.0,97966.0,0.0787]
[1733481105841,0.00127584,97994.0,97967.0,0.023]
[1733481106025,0.204103,97990.0,97976.0,0.204131]
[1733481106250,0.2,97980.0,97976.0,0.204131]
[1733481106408,0.00127583,97979.0,97974.0,0.204135]
[1733481106617,0.00127583,97979.0,97970.0,0.009]
[1733481106818,0.2,97980.0,97970.0,0.009]
[1733481107025,0.2,97980.0,97977.0,0.204129]
[1733481107248,0.2,97980.0,97977.0,0.408258]
[1733481107657,0.201,97980.0,97977.0,0.408258]
[1733481108028,0.2,97980.0,97977.0,0.408258]
[1733481108226,0.2,97980.0,97979.0,0.204125]
[1733481108429,0.201,97980.0,97979.0,0.227125]
[1733481108853,0.2,97980.0,97979.0,0.227125]
[1733481109055,0.2,97980.0,97979.0,0.023]
[1733481109277,0.2,97980.0,97979.0,0.227125]
[1733481109476,0.2,97980.0,97979.0,0.236125]
[1733481109477,0.201,97980.0,97979.0,0.236125]
[1733481109630,0.2,97980.0,97979.0,0.227125]
[1733481110035,0.201,97980.0,97979.0,0.009]
[1733481111368,0.202,97980.0,97979.0,0.018]
[1733481111584,0.2630227,97980.0,97979.0,0.018]
[1733481112410,0.2,97980.0,97966.0,0.282852]
[1733481112609,0.00127582,97979.0,97967.0,0.023]
[1733481112867,0.00127582,97979.0,97966.0,0.0787]
[1733481113427,0.00127582,97979.0,97967.0,0.20415]
[1733481113870,0.00127582,97979.0,97968.0,0.204148]
[1733481114037,0.00127582,97979.0,97966.0,0.0787]
[1733481114468,0.204129,97977.0,97967.0,0.20415]
[1733481114718,0.00127591,97976.0,97967.0,0.20415]
[1733481115475,0.204133,97975.0,97966.0,0.0877]
[1733481115719,0.204137,97973.0,97967.0,0.007]
[1733481115922,0.204148,97968.0,97967.0,0.007]
[1733481116249,0.204148,97968.0,97958.0,0.023]
[1733481116431,0.204142,97971.0,97958.0,0.023]
[1733481116432,0.00127595,97967.0,97958.0,0.023]
[1733481116559,0.04095549,97967.0,97958.0,0.023]
[1733481116767,0.00127595,97966.0,97952.0,0.0797]
[1733481116965,0.204154,97965.0,97952.0,0.0797]
[1733481117192,0.204158,97963.0,97952.0,0.0798745]
[1733481117399,0.204174,97956.0,97952.0,0.0798745]
[1733481117649,0.00127614,97955.0,97952.0,0.0001745]
[1733481117821,0.04210974,97955.0,97952.0,0.0001745]
[1733481118437,0.204177,97954.0,97952.0,0.0001745]
[1733481118624,0.00127625,97953.0,97952.0,0.0091745]
[1733481119137,0.10630779,97953.0,97952.0,0.0001745]
[1733481119542,0.10630779,97953.0,97952.0,0.0091745]
[1733481119784,0.16298798,97953.0,97952.0,0.0101745]
[1733481120129,0.16298798,97953.0,97952.0,0.0091745]
[1733481120408,0.17198798,97953.0,97952.0,0.0101745]
[1733481120842,0.17198798,97953.0,97952.0,0.0011745]
[1733481120843,0.11530779,97953.0,97952.0,0.0011745]
[1733481121094,0.12230779,97953.0,97952.0,0.0021745]
[1733481122161,0.01727625,97953.0,97952.0,0.0021745]
[1733481122403,0.016,97953.0,97952.0,0.0021745]
[1733481123807,0.016,97953.0,97952.0,0.1023745]
[1733481124368,0.016,97953.0,97952.0,0.0793745]
[1733481125750,0.016,97953.0,97952.0,0.0021745]
[1733481126564,0.016,97953.0,97952.0,0.0251745]
[1733481127339,0.016,97953.0,97952.0,0.0241745]
[1733481127340,0.009,97953.0,97952.0,0.0241745]
[1733481127554,0.01,97953.0,97952.0,0.0331745]
[1733481127966,0.01,97953.0,97952.0,0.0341953]
[1733481128174,0.009,97953.0,97952.0,0.0241745]
[1733481128378,0.001,97953.0,97952.0,0.0091745]
[1733481128761,0.001,97953.0,97952.0,0.0171745]
[1733481128762,0.002,97953.0,97952.0,0.0171745]
[1733481128968,0.2,97980.0,97953.0,0.204179]
[1733481128969,0.204146,97969.0,97953.0,0.204179]
[1733481129212,0.204133,97976.0,97952.0,0.0001745]
[1733481129213,0.204167,97959.0,97952.0,0.0001745]
[1733481129468,0.12672222,97968.0,97952.0,0.0081745]
[1733481129469,0.001,97953.0,97952.0,0.0081745]
[1733481129713,0.00127608,97966.0,97953.0,0.408358]
[1733481130290,0.00127608,97966.0,97954.0,0.204177]
[1733481130526,0.00127608,97966.0,97953.0,0.204179]
[1733481130755,0.00127609,97967.0,97952.0,0.0091745]
[1733481130921,0.2,97980.0,97953.0,0.023]
[1733481130922,0.00127599,97975.0,97953.0,0.023]
[1733481131120,0.001,97966.0,97954.0,0.204177]
[1733481132189,0.20541501,97973.0,97961.0,0.204161]
[1733481132807,0.00127601,97973.0,97953.0,0.023]
[1733481133010,0.00127601,97973.0,97952.0,0.0001745]
[1733481133011,0.001,97966.0,97952.0,0.0001745]
[1733481133218,0.001,97966.0,97965.0,0.204154]
[1733481133422,0.00127601,97973.0,97965.0,0.408308]
[1733481133641,0.001,97967.0,97965.0,0.408308]
[1733481133816,0.001,97967.0,97965.0,0.204154]
[1733481134037,0.00127601,97973.0,97965.0,0.204154]
[1733481134266,0.00127601,97973.0,97959.0,0.408332]
[1733481134467,0.007,97966.0,97965.0,0.001]
[1733481134898,0.001276,97971.0,97963.0,0.204158]
[1733481135162,0.001276,97970.0,97965.0,0.001]
[1733481135479,0.018,97973.0,97970.0,0.204143]
[1733481135684,0.009,97973.0,97972.0,0.227139]
[1733481135888,0.00381762,98000.0,97972.0,0.227139]
[1733481135889,0.0007296,98000.0,97972.0,0.023]
[1733481136104,0.0007296,98000.0,97979.0,0.204125]
[1733481136308,0.0007296,98000.0,97979.0,0.227125]
[1733481137360,0.0007296,98000.0,97979.0,0.23741174]
[1733481137739,0.206,97980.0,97979.0,0.23841174]
[1733481138602,0.215,97980.0,97979.0,0.56594617]
[1733481139004,0.215,97980.0,97979.0,0.70280376]
[1733481139208,0.215,97980.0,97979.0,0.74819028]
[1733481139594,0.215,97980.0,97979.0,0.56594617]
[1733481140399,0.215,97980.0,97979.0,0.79422897]
[1733481140599,0.0007296,98000.0,97995.0,0.20409]
[1733481141853,0.00131148,98000.0,97995.0,0.20409]
[1733481142062,0.00131148,98000.0,97995.0,0.20509]
[1733481142259,0.01031148,98000.0,97999.0,0.204083]
[1733481142904,0.01031148,98000.0,97999.0,0.29539252]
[1733481143316,0.01031148,98000.0,97999.0,0.204083]
[1733481144225,0.01031148,98000.0,97999.0,0.227083]
[1733481144560,0.01031148,98000.0,97999.0,0.56445831]
[1733481144561,0.00131148,98000.0,97999.0,0.56445831]
[1733481144850,0.00231148,98000.0,97999.0,0.56545831]
[1733481145276,0.00231148,98000.0,97999.0,0.67048985]
[1733481145503,0.00231148,98000.0,97999.0,0.90228985]
[1733481146165,0.00131148,98000.0,97999.0,0.90128985]
[1733481146361,0.00131148,98000.0,97999.0,0.91928985]
[1733481146825,0.00131148,98000.0,97999.0,1.05708985]
[1733481147033,0.00131148,98000.0,97999.0,1.33045602]
[1733481147244,0.00131148,98000.0,97999.0,1.06608985]
[1733481147691,0.00131148,98000.0,97999.0,1.05708985]
[1733481148101,0.00131148,98000.0,97999.0,1.33080791]
[1733481148311,0.00231148,98000.0,97999.0,1.33980791]
[1733481148484,0.00231148,98000.0,97999.0,1.06549943]
[1733481149637,0.00231148,98000.0,97999.0,1.33894884]
[1733481150340,0.00231148,98000.0,97999.0,1.06549943]
[1733481150824,0.0017286,98040.0,98021.0,0.023]
[1733481151027,0.00017451,98030.0,98023.0,0.023]
[1733481151197,0.00017451,98030.0,98025.0,0.204029]
[1733481151369,0.00017451,98030.0,98028.0,0.023]
[1733481151790,0.00017451,98030.0,98021.0,0.0774]
[1733481151791,0.00017451,98030.0,98029.0,0.00102001]
[1733481151971,0.00017451,98030.0,98029.0,0.227021]
[1733481152357,0.00917451,98030.0,98029.0,0.227021]
[1733481152615,0.00017451,98030.0,98027.0,0.023]
[1733481152819,0.00017451,98030.0,98028.0,0.00101998]
[1733481153954,0.00017451,98030.0,98021.0,0.023]
[1733481154239,0.00017451,98030.0,98027.0,0.009]
[1733481154472,0.00617451,98030.0,98029.0,0.001]
[1733481154677,0.00017451,98030.0,98015.0,0.02402007]
[1733481154889,0.00117451,98030.0,98028.0,0.009]
[1733481155289,0.00017451,98030.0,98015.0,0.02402007]
[1733481155721,0.00117451,98030.0,98027.0,0.009]
[1733481155942,0.00017451,98030.0,98015.0,0.02402007]
[1733481156129,0.00190431,98030.0,98028.0,0.009]
[1733481156560,0.00190431,98030.0,98015.0,0.02402007]
[1733481156976,0.00190431,98030.0,98027.0,0.009]
[1733481157397,0.00190431,98030.0,98015.0,0.02402007]
[1733481157604,0.00190431,98030.0,98015.0,0.00102007]
[1733481157811,0.00190431,98030.0,98016.0,0.02402007]
[1733481158231,0.00290431,98030.0,98016.0,0.02402007]
[1733481158652,0.00190431,98030.0,98016.0,0.02402007]
[1733481159492,0.00190431,98030.0,98016.0,0.02502007]
[1733481159911,0.00190431,98030.0,98016.0,0.03402007]
[1733481162037,0.00190431,98030.0,98016.0,0.02502007]
[1733481162249,0.00190431,98030.0,98016.0,0.02402007]
[1733481162250,0.20190431,98030.0,98016.0,0.02402007]
[1733481162429,0.20190431,98030.0,98016.0,0.03302007]
[1733481162691,0.20190431,98030.0,98016.0,0.03702007]
[1733481162804,0.20190431,98030.0,98018.0,0.023]
[1733481163006,0.20190431,98030.0,98019.0,0.00102008]
[1733481163910,0.20190431,98030.0,98020.0,0.00102008]
[1733481165396,0.20190431,98030.0,98019.0,0.023]
[1733481165569,0.40592331,98030.0,98021.0,0.023]
[1733481165770,0.20190431,98030.0,98021.0,0.023]
[1733481166249,0.0012751,98029.0,98020.0,0.002]
[1733481166424,0.204037,98021.0,98019.0,0.009]
[1733481166642,0.18270699,98020.0,98019.0,0.009]
[1733481166831,0.18270699,98020.0,97982.0,0.0758]
[1733481166832,0.204073,98004.0,97982.0,0.0758]
[1733481167006,0.204081,98001.0,97983.0,0.10503154]
[1733481167186,0.00127548,98000.0,97982.0,0.08611646]
[1733481167395,0.204083,97999.0,97983.0,0.00102045]
[1733481167589,0.204087,97997.0,97983.0,0.00102045]
[1733481167964,0.204083,97999.0,97983.0,0.00102045]
[1733481168167,0.00127557,97998.0,97983.0,0.00102045]
[1733481168345,0.00127557,97998.0,97982.0,0.01031646]
[1733481168346,0.204087,97997.0,97976.0,0.15]
[1733481168595,0.287082,98000.0,97983.0,0.02358188]
[1733481168828,0.00127557,97999.0,97983.0,0.00058188]
[1733481169030,0.00127566,97998.0,97983.0,0.00058188]
[1733481169220,0.204094,97994.0,97983.0,0.00058188]
[1733481169421,0.00127564,97993.0,97983.0,0.00058188]
[1733481169987,0.2041,97991.0,97983.0,0.00058188]
[1733481170197,0.02053756,97990.0,97983.0,0.00058188]
[1733481170363,0.0012757,97989.0,97983.0,0.00058188]
[1733481170581,0.204101,97991.0,97983.0,0.00058188]
[1733481170760,0.00127569,97990.0,97983.0,0.00058188]
[1733481170991,0.05,97986.0,97983.0,8.8e-07]
[1733481171170,0.052,97987.0,97970.0,0.0008649]
[1733481171171,0.05,97982.0,97970.0,7.8e-07]
[1733481171419,0.204142,97971.0,97970.0,7.8e-07]
[1733481171634,0.30917354,97971.0,97970.0,0.00017528]
[1733481171838,0.38091709,97971.0,97970.0,0.00017528]
[1733481172663,0.38791709,97971.0,97970.0,0.00117528]
[1733481172893,0.38191709,97971.0,97970.0,0.00117528]
[1733481173102,0.38191709,97971.0,97970.0,0.00217528]
[1733481173103,0.31017354,97971.0,97970.0,0.00217528]
[1733481173309,0.31017354,97971.0,97970.0,0.00117528]
[1733481173310,0.31617354,97971.0,97970.0,0.00117528]
[1733481173789,0.31617354,97971.0,97970.0,0.00217528]
[1733481173790,0.31717354,97971.0,97970.0,0.00217528]
[1733481174217,0.40533337,97971.0,97970.0,0.00217528]
[1733481174406,1.08093337,97971.0,97970.0,2.8e-07]
[1733481174572,0.281883,97951.0,97950.0,0.0008646]
[1733481174774,0.38691454,97951.0,97950.0,0.0008646]
[1733481174984,0.45122389,97951.0,97950.0,0.0008646]
[1733481176388,0.48232871,97951.0,97950.0,0.0008646]
[1733481176584,0.48932871,97951.0,97950.0,0.0018646]
[1733481177335,0.47911082,97951.0,97950.0,0.0018646]
[1733481177549,0.57751082,97951.0,97950.0,0.0018646]
[1733481177792,0.57751082,97951.0,97950.0,6e-07]
[1733481177993,1.16310992,97951.0,97950.0,6e-07]
[1733481178214,0.204241,97924.0,97920.0,0.0108639]
[1733481178420,0.0012766,97923.0,97920.0,0.01103843]
[1733481178633,0.204244,97922.0,97920.0,0.01103843]
[1733481178851,0.0012766,97921.0,97920.0,0.01103843]
[1733481179059,0.204244,97922.0,97920.0,0.01103843]
[1733481179268,0.04212518,97921.0,97920.0,0.01103843]
[1733481179472,0.04212518,97921.0,97920.0,0.01203843]
[1733481179675,0.14715672,97921.0,97920.0,0.01303843]
[1733481179915,0.14715672,97921.0,97920.0,0.01203843]
[1733481180979,0.14715672,97921.0,97920.0,0.01103843]
[1733481181433,0.15215672,97921.0,97920.0,0.01203843]
[1733481181647,0.15215672,97921.0,97920.0,0.01103843]
[1733481182065,0.15215672,97921.0,97920.0,0.01203843]
[1733481182066,0.16115672,97921.0,97920.0,0.01203843]
[1733481182275,0.12030822,97921.0,97920.0,0.01203843]
[1733481182489,0.12030828,97921.0,97920.0,0.01203843]
[1733481183147,0.014,97921.0,97920.0,0.01203843]
[1733481183791,0.11903154,97921.0,97920.0,0.01203843]
[1733481184045,0.19361036,97921.0,97920.0,0.01203843]
[1733481184838,0.01527671,97921.0,97920.0,0.01203843]
[1733481185177,0.014,97921.0,97920.0,0.01203843]
[1733481185583,0.01527666,97921.0,97920.0,0.01203843]
[1733481185928,0.014,97921.0,97920.0,0.01203843]
[1733481186725,0.01527664,97921.0,97920.0,0.01203843]
[1733481186928,0.0576521,97921.0,97920.0,0.01203843]
[1733481187139,0.014,97921.0,97920.0,0.01203843]
[1733481188889,0.11903154,97921.0,97920.0,0.01203843]
[1733481189164,0.12030824,97921.0,97920.0,0.01203843]
[1733481190780,0.014,97921.0,97920.0,0.01203843]
[1733481190979,0.01527661,97921.0,97920.0,0.01203843]
[1733481191281,0.014,97921.0,97920.0,0.01203843]
[1733481191848,0.01527661,97921.0,97920.0,0.01203843]
[1733481192304,0.014,97921.0,97920.0,0.01203843]
[1733481194010,0.014,97921.0,97920.0,0.00203843]
[1733481194397,0.14226005,97921.0,97920.0,0.00203843]
[1733481196447,0.14226005,97921.0,97920.0,0.00284143]
[1733481198971,0.14226035,97921.0,97920.0,0.00284143]
[1733481199754,0.29226035,97921.0,97920.0,0.00284143]
[1733481199962,0.30689035,97921.0,97920.0,0.00184143]
[1733481200162,1.02118945,97921.0,97920.0,4.3e-07]
[1733481200369,1.02118945,97921.0,97900.0,0.0017296]
[1733481200370,0.253988,97901.0,97900.0,0.0017296]
[1733481200575,0.253988,97901.0,97900.0,0.00178765]
[1733481200576,0.55484604,97901.0,97900.0,0.00178765]
[1733481201137,0.63734604,97901.0,97900.0,0.00178765]
[1733481201746,0.55081954,97901.0,97900.0,0.00278765]
[1733481201954,0.46831954,97901.0,97900.0,0.00278765]
[1733481202154,0.31831954,97901.0,97900.0,0.00278765]
[1733481202359,0.32531954,97901.0,97900.0,0.00278765]
[1733481202800,0.016,97901.0,97900.0,0.00278765]
[1733481203278,0.01727693,97901.0,97900.0,0.00278765]
[1733481203983,0.03943232,97901.0,97900.0,0.00278765]
[1733481204220,0.03243232,97901.0,97900.0,0.00278765]
[1733481204659,0.03943232,97901.0,97900.0,0.00378765]
[1733481204839,0.204286,97902.0,97900.0,0.00278765]
[1733481205235,0.009,97901.0,97900.0,0.00278765]
[1733481205845,0.204286,97902.0,97900.0,0.00178765]
[1733481206053,0.005,97901.0,97900.0,0.00278765]
[1733481206251,0.005,97901.0,97900.0,0.00378765]
[1733481206414,0.005,97901.0,97900.0,0.00278765]
[1733481206831,0.005,97901.0,97900.0,0.00378765]
[1733481206832,0.014,97901.0,97900.0,0.00378765]
[1733481207229,0.009,97901.0,97900.0,0.00278765]
[1733481207835,0.04422308,97901.0,97900.0,0.00278765]
[1733481208275,0.04822308,97901.0,97900.0,0.00278765]
[1733481208477,0.013,97901.0,97900.0,0.00278765]
[1733481209118,0.11803154,97901.0,97900.0,0.00278765]
[1733481210977,0.34773154,97901.0,97900.0,0.00278765]
[1733481211253,0.35794235,97901.0,97900.0,0.00278765]
[1733481212423,0.34773154,97901.0,97900.0,0.00278765]
[1733481212629,0.41920679,97901.0,97900.0,0.00278765]
[1733481213247,0.46580679,97901.0,97900.0,0.00278765]
[1733481213448,0.46575265,97901.0,97900.0,0.00278765]
[1733481214439,0.51575265,97901.0,97900.0,0.00278765]
[1733481215062,1.09935175,97901.0,97900.0,6.5e-07]
[1733481215942,0.204329,97881.0,97870.0,0.0008644]
[1733481216055,0.204329,97881.0,97880.0,0.00144531]
[1733481216056,0.32979344,97881.0,97880.0,0.00144531]
[1733481216667,0.34991974,97881.0,97880.0,0.00144531]
[1733481217620,0.35191974,97881.0,97880.0,0.00144531]
[1733481217822,0.33148684,97881.0,97880.0,0.00144531]
[1733481218032,0.002,97881.0,97880.0,0.00144531]
[1733481218260,0.002,97881.0,97880.0,0.00244531]
[1733481218568,0.011,97881.0,97880.0,0.00244531]
[1733481219091,0.01094585,97881.0,97880.0,0.00244531]
[1733481219756,0.05290503,97881.0,97880.0,0.00244531]
[1733481219964,0.15793657,97881.0,97880.0,0.00244531]
[1733481220166,0.19882457,97881.0,97880.0,0.00244531]
[1733481220795,0.01094585,97881.0,97880.0,0.00244531]
[1733481221222,0.86465421,97911.0,97880.0,0.00244531]
[1733481221223,0.01040065,97910.0,97880.0,0.0034669]
[1733481221423,0.204283,97904.0,97891.0,0.204307]
[1733481221641,0.33105511,97911.0,97892.0,0.00102154]
[1733481221642,0.328,97911.0,97892.0,0.00102154]
[1733481221863,0.040881,97894.0,97893.0,0.204304]
[1733481222069,0.040881,97894.0,97891.0,0.204308]
[1733481222070,0.328,97911.0,97900.0,0.204289]
[1733481222261,0.328,97911.0,97898.0,0.0913542]
[1733481222262,0.532267,97911.0,97898.0,0.0913542]
[1733481222399,0.532267,97911.0,97897.0,0.204294]
[1733481222603,0.532267,97911.0,97891.0,0.18270841]
[1733481222604,0.009,97910.0,97895.0,0.0913542]
[1733481222814,0.040875,97915.0,97907.0,0.204274]
[1733481223013,0.007,97910.0,97907.0,0.204274]
[1733481223409,0.204256,97917.0,97907.0,0.204274]
[1733481223612,0.001,97910.0,97907.0,0.204274]
[1733481223854,0.001,97910.0,97898.0,0.023]
[1733481224057,0.001,97910.0,97898.0,0.02402134]
[1733481224257,0.204263,97913.0,97903.0,0.204282]
[1733481224458,0.204256,97917.0,97907.0,0.204275]
[1733481224660,0.208256,97917.0,97907.0,0.204275]
[1733481224813,0.204256,97916.0,97903.0,0.204282]
[1733481225014,0.004,97917.0,97907.0,0.204275]
[1733481225408,0.004,97917.0,97911.0,0.204266]
[1733481225609,0.004,97917.0,97898.0,0.023]
[1733481225757,0.204256,97916.0,97905.0,0.204278]
[1733481225956,0.204265,97912.0,97907.0,0.001]
[1733481226156,0.002731,97910.0,97907.0,0.001]
[1733481226566,0.002731,97910.0,97907.0,0.00107134]
[1733481226722,0.001731,97910.0,97907.0,0.00107134]
[1733481227404,0.001731,97910.0,97907.0,0.20434634]
[1733481228021,0.001731,97910.0,97907.0,7.134e-05]
[1733481228487,0.010731,97910.0,97907.0,0.00107134]
[1733481229103,0.013731,97910.0,97907.0,0.00107134]
[1733481229547,0.204271,97909.0,97907.0,0.00107134]
[1733481229743,0.013731,97910.0,97907.0,0.00107134]
[1733481230405,0.010731,97910.0,97907.0,0.00107134]
[1733481230556,0.204271,97909.0,97907.0,0.00107134]
[1733481230765,0.003,97909.0,97907.0,0.00107134]
[1733481231790,0.003,97909.0,97907.0,7.134e-05]
[1733481232000,0.005,97909.0,97907.0,0.00107134]
[1733481232195,0.002,97909.0,97907.0,0.00107134]
[1733481233222,0.005,97909.0,97907.0,0.00107134]
[1733481235132,0.30930454,97908.0,97907.0,0.00107134]
[1733481236084,0.51130454,97908.0,97907.0,0.00107134]
[1733481236441,0.51130454,97908.0,97907.0,7.134e-05]
[1733481236803,0.52030454,97908.0,97907.0,0.00107134]
[1733481236990,0.52230454,97908.0,97907.0,0.00107134]
[1733481237171,0.70369946,97908.0,97907.0,0.00107134]
[1733481237374,0.72210047,97908.0,97907.0,0.00107134]
[1733481237839,0.72910047,97908.0,97907.0,0.00207134]
[1733481238056,0.72010047,97908.0,97907.0,0.00107134]
[1733481238465,0.62420555,97908.0,97907.0,0.00207134]
[1733481238666,0.61520555,97908.0,97907.0,0.00107134]
[1733481239027,0.54070555,97908.0,97907.0,0.00107134]
[1733481239229,0.53170555,97908.0,97907.0,7.134e-05]
[1733481239426,0.53870555,97908.0,97907.0,0.00107134]
[1733481239654,0.54770555,97908.0,97907.0,0.00107134]
[1733481239856,0.64667604,97908.0,97907.0,7.134e-05]
[1733481240195,0.65267604,97908.0,97907.0,0.00107134]
[1733481240968,0.54778112,97908.0,97907.0,0.00107134]
[1733481241391,0.55678112,97908.0,97907.0,0.00207134]
[1733481242041,0.50478112,97908.0,97907.0,0.00207134]
[1733481242252,0.51010555,97908.0,97907.0,0.00207134]
[1733481242474,0.50002998,97908.0,97907.0,0.00207134]
[1733481242674,0.57274236,97908.0,97907.0,0.00207134]
[1733481243834,0.77274236,97908.0,97907.0,0.00207134]
[1733481247495,0.78304421,97908.0,97907.0,0.00207134]
[1733481249219,0.78608078,97908.0,97907.0,0.00207134]
[1733481249620,2.51148078,97908.0,97907.0,0.00207134]
[1733481249830,2.41148078,97908.0,97907.0,0.00207134]
[1733481251392,2.46148078,97908.0,97907.0,0.00207134]
[1733481251721,2.36588078,97908.0,97907.0,0.00207134]
[1733481251925,0.7133684,97908.0,97907.0,0.00207134]
[1733481252327,0.55306655,97908.0,97907.0,0.00207134]
[1733481252525,0.55002998,97908.0,97907.0,0.00207134]
[1733481253929,0.70002998,97908.0,97907.0,0.00207134]
[1733481255888,2.20002998,97908.0,97907.0,0.00207134]
[1733481256091,2.3049249,97908.0,97907.0,0.00207134]
[1733481256307,2.838524,97908.0,97907.0,0.00207134]
[1733481256746,1.338524,97908.0,97907.0,0.00207134]
[1733481256957,1.23362908,97908.0,97907.0,0.00207134]
[1733481258359,1.24379838,97908.0,97907.0,0.00207134]
[1733481259141,0.71326911,97908.0,97907.0,0.00207134]
[1733481259778,0.56326911,97908.0,97907.0,0.00207134]
[1733481260825,0.6650942,97908.0,97907.0,0.00207134]
[1733481261026,0.55487485,97908.0,97907.0,0.00207134]
[1733481262326,0.54470555,97908.0,97907.0,0.00207134]
[1733481262747,0.52430454,97908.0,97907.0,0.00207134]
[1733481263868,0.419273,97908.0,97907.0,0.00207134]
[1733481267374,0.52430454,97908.0,97907.0,0.00207134]
[1733481267627,0.62919946,97908.0,97907.0,0.00207134]
[1733481269598,0.63945149,97908.0,97907.0,0.00207134]
[1733481271457,0.53455657,97908.0,97907.0,0.00207134]
[1733481272538,0.52430454,97908.0,97907.0,0.00207134]
[1733481277787,0.53476188,97908.0,97907.0,0.00207134]
[1733481278646,0.22545734,97908.0,97907.0,0.00207134]
[1733481278846,0.215,97908.0,97907.0,0.12507134]
[1733481279328,0.215,97908.0,97907.0,0.21670608]
[1733481279558,0.215,97908.0,97907.0,0.14807134]
[1733481279691,0.206,97908.0,97907.0,0.68639363]
[1733481279890,0.206,97908.0,97907.0,0.84160704]
[1733481279891,0.215,97908.0,97907.0,0.84160704]
[1733481280132,0.209,97908.0,97907.0,0.84060704]
[1733481280526,0.215,97908.0,97907.0,0.84160704]
[1733481280958,0.209,97908.0,97907.0,0.84060704]
[1733481281130,0.209,97908.0,97907.0,0.85104288]
[1733481281489,0.201,97908.0,97907.0,0.85704288]
[1733481281716,0.21,97908.0,97907.0,0.85804288]
[1733481281923,0.201,97908.0,97907.0,0.85704288]
[1733481282367,0.202,97908.0,97907.0,0.86604288]
[1733481283177,0.202,97908.0,97907.0,1.0491113]
[1733481284135,0.001731,97910.0,97909.0,0.273]
[1733481284473,0.001731,97910.0,97909.0,0.79858367]
[1733481284686,0.001731,97910.0,97909.0,0.46083154]
[1733481284844,0.001731,97910.0,97909.0,0.48298693]